bitfinex-derivatives/quotes_ETHF0:USTF0_20240817
["timestamp","ask_amount","ask_price","bid_price","bid_amount"]
[1723886767802,0.00017273,2603.0,2602.9,8.67718201]
[1723886768105,0.00017273,2603.0,2602.9,7.23678201]
[1723886768306,0.00017273,2603.0,2602.9,7.23674551]
[1723886769697,0.00017273,2603.0,2602.9,8.67714551]
[1723886770707,0.00017273,2603.0,2602.9,5.46934551]
[1723886771200,0.00017273,2603.0,2602.9,8.67714551]
[1723886772398,0.00017273,2603.0,2602.9,7.23674551]
[1723886772598,0.00017273,2603.0,2602.9,8.67715551]
[1723886772898,0.00017273,2603.0,2602.9,6.63222534]
[1723886773105,0.00017273,2603.0,2602.9,7.23694631]
[1723886773505,0.00017273,2603.0,2602.9,7.23689177]
[1723886773901,0.00017273,2603.0,2602.9,7.17358662]
[1723886774805,0.00017273,2603.0,2602.9,7.17352746]
[1723886776096,0.00017273,2603.0,2602.9,7.2388291]
[1723886776296,8.84177273,2603.0,2602.9,0.60460727]
[1723886776493,8.84177273,2603.0,2602.9,0.6048359]
[1723886776706,8.84177273,2603.0,2602.7,1.00397485]
[1723886776896,1.0888,2602.9,2602.8,0.60486335]
[1723886777100,4.9304,2602.9,2602.8,1.6088382]
[1723886777396,0.7236,2602.9,2602.8,4.8166382]
[1723886777598,0.3753,2602.9,2602.8,4.8166382]
[1723886777908,0.3753,2602.9,2602.8,6.73751217]
[1723886778907,0.3753,2602.9,2602.8,5.73353732]
[1723886779099,0.00017273,2603.0,2602.8,6.73776225]
[1723886779304,0.00017273,2603.0,2602.9,2.71708828]
[1723886779508,0.00017273,2603.0,2602.9,1.71286335]
[1723886779809,0.00017273,2603.0,2602.9,2.71708828]
[1723886780213,0.00017273,2603.0,2602.9,6.93537553]
[1723886780399,0.00017273,2603.0,2602.9,6.93594864]
[1723886780612,0.00017273,2603.0,2602.9,7.43949268]
[1723886780804,0.00017273,2603.0,2602.9,5.42966389]
[1723886781404,0.00017273,2603.0,2602.9,5.80696389]
[1723886781807,0.00017273,2603.0,2602.9,5.80692938]
[1723886782117,0.00017273,2603.0,2602.9,7.31341078]
[1723886782310,0.00017273,2603.0,2602.9,5.80692938]
[1723886783611,0.00017273,2603.0,2602.9,7.81675817]
[1723886783815,0.00017273,2603.0,2602.9,5.80692938]
[1723886784110,0.00017273,2603.0,2602.9,7.81675817]
[1723886784311,0.00017273,2603.0,2602.9,5.80692938]
[1723886784514,0.00017273,2603.0,2602.9,4.53545817]
[1723886784709,0.00017273,2603.0,2602.9,5.85865644]
[1723886784905,0.00017273,2603.0,2602.9,5.79273938]
[1723886785315,0.00017273,2603.0,2602.9,11.64410024]
[1723886785714,0.00017273,2603.0,2602.9,11.03923689]
[1723886785910,0.00017273,2603.0,2602.9,11.64361809]
[1723886786311,0.00017273,2603.0,2602.9,11.64331374]
[1723886788636,0.00017273,2603.0,2602.9,11.64197048]
[1723886788832,0.00017273,2603.0,2602.9,9.63348495]
[1723886789026,0.00017273,2603.0,2602.9,11.64199721]
[1723886789333,0.00017273,2603.0,2602.9,9.63348495]
[1723886790826,0.00017273,2603.0,2602.9,3.8714912]
[1723886791026,0.00017273,2603.0,2602.9,9.63339044]
[1723886791828,0.00017273,2603.0,2602.9,12.84119044]
[1723886793526,0.00017273,2603.0,2602.9,9.63339044]
[1723886793833,0.00017273,2603.0,2602.9,12.84119044]
[1723886794630,0.00017273,2603.0,2602.9,15.35347643]
[1723886795021,0.00017273,2603.0,2602.9,23.2251745]
[1723886795429,0.00017273,2603.0,2602.9,23.22508532]
[1723886796429,0.00017273,2603.0,2602.9,19.38348532]
[1723886797434,0.00017273,2603.0,2602.9,18.77910412]
[1723886797635,0.00017273,2603.0,2602.9,19.38334544]
[1723886797836,0.00017273,2603.0,2602.9,18.77910412]
[1723886798038,0.00017273,2603.0,2602.9,19.38333744]
[1723886798424,0.00017273,2603.0,2602.9,16.87105145]
[1723886798636,0.00017273,2603.0,2602.9,19.38333744]
[1723886800142,0.00017273,2603.0,2602.9,16.83492744]
[1723886800435,0.00017273,2603.0,2602.9,12.69124139]
[1723886801739,0.00017273,2603.0,2602.9,8.85003468]
[1723886802036,10.28212273,2603.0,2602.9,4.8170188]
[1723886802240,10.85755081,2603.0,2602.9,0.60423332]
[1723886802436,11.22785081,2603.0,2602.9,0.60423332]
[1723886802837,9.21207273,2603.0,2602.9,0.60423332]
[1723886803035,4.21207273,2603.0,2602.9,2.7172188]
[1723886803642,4.21207273,2603.0,2602.9,4.63810696]
[1723886803943,4.21207273,2603.0,2602.9,5.1405997]
[1723886804345,4.21207273,2603.0,2602.9,5.14056736]
[1723886805244,4.21207273,2603.0,2602.9,3.63308914]
[1723886805445,4.21207273,2603.0,2602.9,5.14056736]
[1723886805642,4.21207273,2603.0,2602.9,5.1407521]
[1723886805939,4.21207273,2603.0,2602.9,3.63327388]
[1723886806739,4.21207273,2603.0,2602.9,2.52527388]
[1723886806939,4.21207273,2603.0,2602.9,2.71703161]
[1723886807142,4.21207273,2603.0,2602.9,1.71241806]
[1723886807338,4.21207273,2603.0,2602.9,2.71703161]
[1723886807540,4.21207273,2603.0,2602.9,1.71241806]
[1723886808940,4.21207273,2603.0,2602.9,2.71703161]
[1723886809146,4.21207273,2603.0,2602.9,1.71241806]
[1723886809550,4.21207273,2603.0,2602.9,1.108]
[1723886809838,4.21207273,2603.0,2602.9,1.71252327]
[1723886810249,4.21207273,2603.0,2602.9,1.71249569]
[1723886811433,4.58437273,2603.0,2602.9,1.71249569]
[1723886811637,0.37247273,2603.0,2602.9,4.15750924]
[1723886811845,0.37247273,2603.0,2602.9,6.07834613]
[1723886812047,0.37247273,2603.0,2602.9,5.07373258]
[1723886812340,0.37247273,2603.0,2602.9,6.43854613]
[1723886812341,0.00017273,2603.0,2602.9,6.43854613]
[1723886812542,0.00017273,2603.0,2602.9,7.44383059]
[1723886813138,0.00017273,2603.0,2602.9,5.43443258]
[1723886813441,0.00017273,2603.0,2602.9,5.4343748]
[1723886813647,0.00017273,2603.0,2602.9,3.72187911]
[1723886813942,0.00017273,2603.0,2602.9,5.4342067]
[1723886814138,0.00017273,2603.0,2602.9,4.39181823]
[1723886814341,3.84177273,2603.0,2602.9,0.60432759]
[1723886814532,3.84177273,2603.0,2602.9,1.60846107]
[1723886814737,3.84177273,2603.0,2602.9,0.60432759]
[1723886815133,4.57687273,2603.0,2602.9,0.60432759]
[1723886815442,5.68487273,2603.0,2602.9,0.60432759]
[1723886815647,10.68487273,2603.0,2602.9,0.60432759]
[1723886816145,10.68487273,2603.0,2602.7,5.31993348]
[1723886816347,5.68487273,2603.0,2602.8,0.60451633]
[1723886816645,5.68487273,2603.0,2602.7,5.31993348]
[1723886816646,1.44041,2602.9,2602.7,4.21193348]
[1723886816834,2.54841,2602.9,2602.6,2.11213348]
[1723886817039,1.108,2602.9,2602.7,0.60462286]
[1723886817343,1.108,2602.9,2602.6,2.11213348]
[1723886817543,1.108,2602.9,2602.7,0.60461141]
[1723886817544,0.363,2602.8,2602.7,0.60461141]
[1723886817739,0.363,2602.8,2602.7,0.60464143]
[1723886817941,4.2054,2602.8,2602.7,0.60464143]
[1723886819241,4.2054,2602.8,2602.5,1.37143348]
[1723886819442,6.22117808,2602.8,2602.5,1.4753]
[1723886819640,5.64589,2602.8,2602.5,0.3673]
[1723886819841,6.22117808,2602.8,2602.5,1.4753]
[1723886820048,4.2054,2602.8,2602.5,1.4753]
[1723886821045,1.44052,2602.7,2602.5,1.4753]
[1723886821242,3.8424,2602.7,2602.5,1.4753]
[1723886821947,3.8424,2602.6,2602.5,1.4753]
[1723886822249,3.8424,2602.7,2602.5,1.4753]
[1723886822549,3.8424,2602.7,2602.5,1.108]
[1723886822742,3.8424,2602.6,2602.5,1.108]
[1723886823051,3.8424,2602.7,2602.5,1.108]
[1723886823350,2.54848,2602.8,2602.5,1.108]
[1723886823552,5.28294,2602.7,2602.5,1.108]
[1723886823851,3.8424,2602.7,2602.5,1.108]
[1723886824151,3.8424,2602.6,2602.5,1.108]
[1723886825342,3.8424,2602.6,2602.3,0.00281007]
[1723886825650,2.54849,2602.8,2602.4,1.108]
[1723886827447,2.54855,2602.7,2602.3,1.11081007]
[1723886827643,1.108,2602.5,2602.3,0.00281007]
[1723886828256,4.9504,2602.4,2602.3,0.00281007]
[1723886828449,1.108,2602.4,2602.3,0.00281007]
[1723886828748,1.44084,2602.2,2601.8,1.108]
[1723886829056,1.108,2601.9,2601.7,0.00577212]
[1723886829553,4.9512,2601.9,2601.7,0.00916848]
[1723886830048,3.2078,2602.1,2601.7,1.45023848]
[1723886830049,1.108,2602.1,2601.7,1.45023848]
[1723886830256,1.108,2602.1,2601.7,0.00916848]
[1723886830552,4.9512,2602.1,2601.8,1.108]
[1723886830753,1.108,2602.1,2601.8,1.108]
[1723886831250,4.9512,2602.1,2601.8,1.108]
[1723886831848,6.39205,2602.1,2601.8,1.108]
[1723886832049,4.9512,2602.1,2601.8,1.108]
[1723886833153,6.39205,2602.1,2601.8,1.108]
[1723886833560,4.9512,2602.1,2601.8,1.108]
[1723886833849,6.39205,2602.1,2601.8,1.108]
[1723886834457,6.39205,2602.1,2601.7,0.00916848]
[1723886834649,2.54885,2602.1,2601.7,0.00916848]
[1723886834849,5.75665,2602.1,2601.7,0.00916848]
[1723886836254,1.108,2601.9,2601.7,0.00916848]
[1723886850064,1.108,2601.9,2601.7,1.11716848]
[1723886850265,1.108,2602.1,2601.7,1.11716848]
[1723886850569,1.108,2602.1,2601.8,1.108]
[1723886851372,2.54885,2602.1,2601.8,1.108]
[1723886851556,6.39205,2602.1,2601.8,1.108]
[1723886851756,2.54885,2602.1,2601.8,1.108]
[1723886852158,6.39205,2602.1,2601.7,0.00916848]
[1723886852462,2.54885,2602.1,2601.7,0.00916848]
[1723886855172,1.108,2602.1,2601.7,0.00916848]
[1723886856765,2.54886,2602.1,2601.7,0.00916848]
[1723886857168,1.108,2601.9,2601.7,0.00916848]
[1723886860471,1.108,2602.0,2601.7,0.00916848]
[1723886861981,1.108,2602.0,2601.7,1.45019848]
[1723886864471,1.108,2602.2,2601.8,2.54898]
[1723886867680,1.108,2602.2,2601.9,0.60511377]
[1723886867881,1.108,2602.1,2601.8,3.55311348]
[1723886868075,1.108,2602.1,2601.9,0.60512814]
[1723886868274,1.108,2602.1,2601.8,3.55311348]
[1723886868475,1.108,2602.1,2601.9,0.6051277]
[1723886868671,1.108,2602.1,2601.8,3.55311348]
[1723886868871,1.108,2602.1,2601.9,0.60512626]
[1723886869177,1.108,2602.1,2601.8,3.55311348]
[1723886869477,1.108,2602.2,2601.9,0.60509358]
[1723886869676,4.113,2602.3,2602.1,1.108]
[1723886869975,4.113,2602.3,2602.2,0.60496374]
[1723886870182,4.113,2602.3,2602.2,3.04980725]
[1723886870373,4.113,2602.3,2602.2,1.60901725]
[1723886870778,4.113,2602.3,2602.2,1.6090127]
[1723886874580,12.032,2602.4,2602.2,1.60902492]
[1723886874881,12.032,2602.4,2602.3,0.60489144]
[1723886875079,1.108,2602.4,2602.3,0.60489144]
[1723886875282,7.56927808,2602.8,2602.3,1.60902492]
[1723886875476,1.108,2602.6,2602.4,0.60489144]
[1723886875681,6.12877808,2602.8,2602.3,2.44485348]
[1723886875880,5.221,2602.8,2602.4,4.81674311]
[1723886876082,5.221,2602.8,2602.5,0.60480963]
[1723886876385,6.66146,2602.8,2602.4,4.21193348]
[1723886876681,6.66146,2602.8,2602.4,3.2078]
[1723886876869,4.113,2602.8,2602.4,3.2078]
[1723886877071,1.108,2602.7,2602.5,0.60477142]
[1723886877284,1.108,2602.7,2602.4,4.21193348]
[1723886877478,1.108,2602.7,2602.5,0.60474306]
[1723886877675,8.91295081,2603.0,2602.7,1.44048]
[1723886877676,2.01595081,2603.0,2602.7,1.44048]
[1723886877877,0.00017273,2603.0,2602.7,4.3158]
[1723886878178,1.10817273,2603.0,2602.7,3.2078]
[1723886878381,1.10817273,2603.0,2602.7,4.64831]
[1723886879275,1.0602,2602.9,2602.7,4.64831]
[1723886881081,1.108,2602.8,2602.7,3.2078]
[1723886882991,2.1682,2602.9,2602.7,3.2078]
[1723886884285,1.108,2602.8,2602.7,3.2078]
[1723886885586,1.108,2602.8,2602.6,1.108]
[1723886889689,2.1682,2602.9,2602.6,1.108]
[1723886889884,2.1682,2602.9,2602.6,2.54856]
[1723886890084,2.1682,2602.9,2602.6,1.108]
[1723886890280,1.0602,2602.9,2602.8,1.44046]
[1723886890893,1.0602,2602.9,2602.7,1.44048]
[1723886891095,1.0602,2602.9,2602.6,1.108]
[1723886891096,2.1682,2602.9,2602.6,1.108]
[1723886891292,2.1682,2602.9,2602.5,4.64839]
[1723886891796,1.108,2602.7,2602.5,3.2078]
[1723886892397,1.108,2602.7,2602.5,4.64841]
[1723886893298,1.108,2602.7,2602.5,3.2078]
[1723886894497,1.108,2602.7,2602.5,4.64841]
[1723886894993,1.108,2602.6,2602.5,3.2078]
[1723886895800,2.54857,2602.6,2602.5,3.2078]
[1723886896396,1.108,2602.6,2602.5,3.2078]
[1723886897406,1.0602,2602.9,2602.5,4.3158]
[1723886897604,2.1682,2602.9,2602.5,5.75639]
[1723886898008,1.108,2602.8,2602.5,3.2078]
[1723886898215,1.108,2602.6,2602.5,3.2078]
[1723886898412,1.108,2602.6,2602.5,4.64843]
[1723886898715,1.108,2602.8,2602.5,4.64843]
[1723886901114,1.0602,2602.9,2602.5,4.64843]
[1723886901307,1.108,2602.8,2602.5,4.64843]
[1723886903018,1.108,2602.8,2602.6,0.7414]
[1723886903422,1.108,2602.8,2602.6,2.18197]
[1723886905213,1.108,2602.8,2602.6,0.7414]
[1723886914216,1.108,2602.8,2602.7,0.60473801]
[1723886915228,1.108,2602.8,2602.7,1.60887149]
[1723886915526,1.108,2602.8,2602.7,0.60473801]
[1723886919923,1.108,2602.8,2602.7,1.60887149]
[1723886920529,1.108,2602.8,2602.7,1.00413348]
[1723886920728,1.108,2602.8,2602.7,1.60888833]
[1723886921723,3.12377808,2602.9,2602.7,3.52993869]
[1723886921920,3.12377808,2602.9,2602.8,0.60475485]
[1723886924236,3.12377808,2602.9,2602.7,1.00413348]
[1723886924430,1.108,2602.8,2602.7,1.00413348]
[1723886924624,3.12377808,2602.8,2602.7,1.60886263]
[1723886924829,1.108,2602.8,2602.7,1.60886263]
[1723886925335,1.486,2602.8,2602.7,1.60886263]
[1723886925531,3.50177808,2602.8,2602.7,1.60886263]
[1723886926029,1.486,2602.8,2602.7,1.60886263]
[1723886926432,5.3284,2602.8,2602.7,1.60886263]
[1723886926635,8.78463808,2602.8,2602.7,1.60886263]
[1723886926834,7.34417808,2602.8,2602.7,1.60886263]
[1723886927024,7.34417808,2602.8,2602.7,0.60472915]
[1723886927425,3.50177808,2602.8,2602.7,0.60472915]
[1723886928432,3.50177808,2602.8,2602.6,1.74553348]
[1723886928635,3.50177808,2602.8,2602.7,0.60473515]
[1723886930535,3.50177808,2602.8,2602.7,1.60886863]
[1723886933237,3.50177808,2602.8,2602.7,1.00413348]
[1723886933534,3.12377808,2602.8,2602.7,1.60878649]
[1723886933740,2.01577808,2602.8,2602.7,3.04930649]
[1723886934043,2.01577808,2602.9,2602.7,3.96621974]
[1723886934239,2.01558614,2602.9,2602.8,0.60465301]
[1723886934434,2.01558614,2602.9,2602.8,1.61021042]
[1723886935032,3.99909534,2603.0,2602.8,0.60465301]
[1723886935242,3.99909534,2603.0,2602.9,0.60465301]
[1723886936934,3.99909534,2603.0,2602.9,0.60462533]
[1723886937636,5.43944534,2603.0,2602.9,0.60462533]
[1723886937840,2.91972273,2603.0,2602.9,0.60462533]
[1723886938534,5.43961946,2603.0,2602.9,0.60462533]
[1723886939643,2.91972273,2603.0,2602.9,0.60462533]
[1723886940137,5.43971666,2603.0,2602.9,0.60462533]
[1723886940538,5.43969258,2603.0,2602.9,0.60462533]
[1723886940929,2.91972273,2603.0,2602.9,0.60462533]
[1723886941641,6.76132273,2603.0,2602.9,0.60462533]
[1723886941830,4.21297273,2603.0,2602.9,0.60462533]
[1723886942140,3.99965813,2603.0,2602.9,0.60462533]
[1723886942341,3.99965813,2603.0,2602.9,0.95102533]
[1723886943849,7.84125813,2603.0,2602.9,0.95102533]
[1723886944041,6.76132273,2603.0,2602.9,0.60462533]
[1723886944241,7.11522273,2603.0,2602.9,0.60462533]
[1723886947250,1.44046,2602.8,2602.7,1.00555741]
[1723886947447,5.06909509,2602.8,2602.7,1.61030119]
[1723886947950,5.06909509,2602.8,2602.7,0.60474378]
[1723886948146,5.06909509,2602.8,2602.7,1.00555741]
[1723886948346,1.44052,2602.7,2602.6,1.00555741]
[1723886948541,1.79842,2602.7,2602.6,1.61036466]
[1723886950146,5.64082,2602.7,2602.6,1.61036466]
[1723886950351,7.65696195,2602.7,2602.6,1.61036466]
[1723886952447,7.65696195,2602.7,2602.6,1.61034568]
[1723886953657,6.21644195,2602.7,2602.6,1.61034568]
[1723886953849,2.01614195,2602.7,2602.6,1.61034568]
[1723886954052,2.01614195,2602.7,2602.6,2.52592059]
[1723886954249,3.12414195,2602.8,2602.6,4.03193212]
[1723886954452,3.62863509,2602.9,2602.7,1.61063375]
[1723886954652,3.62863509,2602.9,2602.8,0.96038827]
[1723886954849,3.62863509,2602.9,2602.8,1.30408827]
[1723886955045,5.06904509,2602.9,2602.8,1.30408827]
[1723886955448,3.62863509,2602.9,2602.8,1.30408827]
[1723886956655,3.62863509,2602.9,2602.8,1.30403755]
[1723886957044,3.62863509,2602.9,2602.8,1.30404567]
[1723886957560,5.06904509,2602.9,2602.8,1.30404567]
[1723886958354,5.06904509,2602.9,2602.8,1.30406118]
[1723886958746,2.54841,2602.9,2602.8,1.30406118]
[1723886959050,5.06824198,2602.9,2602.8,1.30406118]
[1723886959255,5.06823104,2602.9,2602.8,1.30406118]
[1723886959455,5.06823104,2602.9,2602.8,0.60476118]
[1723886959655,5.44103104,2602.9,2602.8,0.60476118]
[1723886960458,5.44103104,2602.9,2602.6,1.34794548]
[1723886960659,3.1238129,2602.7,2602.6,1.34794548]
[1723886960857,3.1238129,2602.7,2602.6,3.26908897]
[1723886962350,4.51822994,2602.7,2602.6,2.93932618]
[1723886962661,6.90036307,2602.7,2602.5,5.28836937]
[1723886962960,3.8939334,2602.6,2602.5,3.62858149]
[1723886963360,3.8939334,2602.6,2602.5,5.25790825]
[1723886963850,5.06771413,2602.6,2602.5,1.44062]
[1723886964057,3.41022994,2602.7,2602.6,1.44057]
[1723886964358,5.79219067,2602.7,2602.6,14.84504645]
[1723886964759,5.79219067,2602.7,2602.6,19.84473943]
[1723886964954,5.79219067,2602.7,2602.6,17.33245344]
[1723886965159,2.38196073,2602.7,2602.6,17.33245344]
[1723886965355,2.38196073,2602.7,2602.6,19.84443233]
[1723886965559,2.38196073,2602.7,2602.6,20.19283233]
[1723886966050,2.38196073,2602.7,2602.6,15.92533233]
[1723886966359,6.81909873,2602.9,2602.8,1.44046]
[1723886966563,8.55461371,2602.9,2602.8,4.55759124]
[1723886966763,5.14504634,2602.9,2602.8,4.55759124]
[1723886967469,5.14504634,2602.9,2602.8,2.54846]
[1723886969362,5.14504634,2602.9,2602.8,5.75626]
[1723886969758,4.58331209,2602.9,2602.8,5.75626]
[1723886970361,1.17378073,2602.9,2602.8,5.75626]
[1723886970670,1.17378073,2602.9,2602.8,7.32824137]
[1723886971761,0.00017273,2603.0,2602.9,1.44041]
[1723886971960,0.00017273,2603.0,2602.9,7.20119137]
[1723886972561,3.35720027,2603.4,2603.1,1.44026]
[1723886972757,3.35720027,2603.4,2603.2,0.97282183]
[1723886972967,3.35720027,2603.4,2603.3,0.60552183]
[1723886973161,1.51180027,2603.4,2603.3,0.60552183]
[1723886973361,1.17709477,2603.4,2603.3,0.60552183]
[1723886974470,1.17709477,2603.4,2603.2,2.1547]
[1723886974660,0.00331404,2603.4,2603.3,0.60533474]
[1723886975062,1.17709477,2603.4,2603.3,0.60533474]
[1723886975461,1.17709477,2603.4,2603.2,2.1547]
[1723886975672,1.17378073,2603.3,2603.2,2.1547]
[1723886975969,1.17378073,2603.3,2603.2,2.76004814]
[1723886978373,1.17378073,2603.3,2603.2,2.1547]
[1723886978670,1.17378073,2603.3,2603.2,2.76005235]
[1723886980072,1.17378073,2603.3,2603.2,1.31985235]
[1723886980968,1.17378073,2603.3,2603.0,1.11377212]
[1723886981271,1.17378073,2603.1,2603.0,1.46607212]
[1723886981474,1.17378073,2603.1,2603.0,3.51182148]
[1723886981865,1.17378073,2603.1,2603.0,2.07147148]
[1723886982767,0.00331404,2603.4,2603.0,7.35342148]
[1723886982964,0.72341404,2603.4,2603.3,1.108]
[1723886983471,1.89719477,2603.4,2603.2,1.108]
[1723886983663,0.72341404,2603.4,2603.2,1.108]
[1723886983867,1.17378073,2603.3,2603.2,1.108]
[1723886984268,1.17378073,2603.3,2603.0,1.46607212]
[1723886984470,1.17378073,2603.1,2603.0,1.46607212]
[1723886984672,1.17378073,2603.1,2603.0,3.51183039]
[1723886984971,0.72341404,2603.4,2603.0,7.35343039]
[1723886985170,1.17378073,2603.2,2603.1,0.60540827]
[1723886986771,1.17378073,2603.2,2603.0,1.46607212]
[1723886987169,1.17378073,2603.2,2603.1,0.60539184]
[1723886987573,1.17378073,2603.2,2603.0,2.90641212]
[1723886987776,1.17378073,2603.2,2603.1,0.60538593]
[1723886987975,1.17378073,2603.2,2603.0,2.90641212]
[1723886988479,1.17378073,2603.1,2603.0,2.90641212]
[1723886988776,1.17378073,2603.1,2603.0,3.5117895]
[1723886990671,1.17378073,2603.1,2603.0,3.5117718]
[1723886994670,1.17378073,2603.1,2603.0,2.90641212]
[1723886994870,1.17378073,2603.1,2603.0,3.51155388]
[1723886998487,1.17378073,2603.1,2603.0,4.51493483]
[1723886998783,1.17378073,2603.1,2603.0,3.90979307]
[1723886998975,1.17378073,2603.1,2603.0,4.51488929]
[1723886999281,1.17378073,2603.1,2603.0,2.07116834]
[1723887000274,1.17378073,2603.1,2603.0,3.51151834]
[1723887000473,1.17378073,2603.1,2603.0,4.51489929]
[1723887000674,1.17378073,2603.1,2603.0,3.07454929]
[1723887000976,1.17378073,2603.1,2603.0,2.07116834]
[1723887001477,1.17378073,2603.1,2603.0,0.61086834]
[1723887001674,1.17378073,2603.1,2603.0,0.61094434]
[1723887001879,1.52288073,2603.1,2603.0,0.00577212]
[1723887002375,3.034681,2603.1,2603.0,0.00577212]
[1723887002877,1.52288073,2603.1,2603.0,0.00577212]
[1723887003083,1.52288073,2603.1,2603.0,0.61080889]
[1723887005591,3.034681,2603.1,2603.0,0.61080889]
[1723887006084,1.52288073,2603.1,2603.0,0.61080889]
[1723887006485,1.52288073,2603.1,2603.0,0.00577212]
[1723887006784,1.52288073,2603.1,2603.0,0.61048962]
[1723887007388,3.034681,2603.1,2603.0,0.61048962]
[1723887008983,1.51180027,2603.1,2603.0,7.00043962]
[1723887009178,3.2078,2603.3,2603.1,1.44025]
[1723887009380,3.2078,2603.3,2603.2,4.94853168]
[1723887009890,4.38158073,2603.3,2603.2,6.38832033]
[1723887010787,4.38158073,2603.3,2603.2,3.84008033]
[1723887010994,4.38158073,2603.3,2603.2,4.94808033]
[1723887011286,5.893381,2603.3,2603.2,5.95113755]
[1723887012895,5.893381,2603.3,2603.2,4.03053178]
[1723887013490,5.893381,2603.3,2603.2,2.06261924]
[1723887013788,5.89221355,2603.3,2603.2,1.71251924]
[1723887013992,5.89221355,2603.3,2603.2,2.71557646]
[1723887014692,2.68441355,2603.3,2603.2,2.71557646]
[1723887014990,2.68441355,2603.3,2603.2,3.68062768]
[1723887016483,3.79241355,2603.3,2603.2,1.60757646]
[1723887016685,7.54819,2603.3,2602.8,1.00369359]
[1723887016880,3.12255813,2602.9,2602.6,2.11169359]
[1723887017086,3.07685813,2602.8,2602.7,0.60497252]
[1723887017589,1.0623,2602.8,2602.7,0.60497252]
[1723887018101,1.0623,2602.8,2602.7,1.71297252]
[1723887018306,2.57240865,2602.8,2602.7,1.71299027]
[1723887021203,2.53240865,2602.8,2602.7,1.71299027]
[1723887021905,2.53240865,2602.8,2602.7,1.71295095]
[1723887022401,1.0223,2602.8,2602.7,1.108]
[1723887022704,1.0223,2602.8,2602.7,1.71294349]
[1723887022896,2.53240865,2602.8,2602.7,1.108]
[1723887023303,1.0223,2602.8,2602.7,1.108]
[1723887024706,1.51010865,2603.0,2602.8,1.44046]
[1723887024900,2.01455813,2603.2,2602.8,1.44046]
[1723887024901,1.88670865,2603.1,2602.8,2.54846]
[1723887025098,2.23460865,2603.1,2602.9,0.3539]
[1723887025501,6.07620865,2603.1,2602.9,0.3539]
[1723887025703,6.07620865,2603.1,2602.7,1.00369359]
[1723887025910,1.51010865,2603.0,2602.8,1.108]
[1723887026307,5.35170865,2603.0,2602.8,1.108]
[1723887026710,4.78293865,2603.1,2602.8,1.108]
[1723887027304,4.78293865,2603.1,2602.7,0.3539]
[1723887027305,3.67493865,2603.1,2602.9,1.108]
[1723887028106,2.95045865,2603.0,2602.7,0.3539]
[1723887028308,2.95045865,2603.0,2602.8,0.60482021]
[1723887028613,2.95045865,2603.0,2602.7,1.4619]
[1723887028912,2.95045865,2603.0,2602.8,0.60483647]
[1723887029101,2.95045865,2603.0,2602.7,1.4619]
[1723887029304,2.95045865,2603.0,2602.8,0.6048284]
[1723887029505,2.95045865,2603.0,2602.5,1.00946571]
[1723887029506,1.44045,2602.9,2602.5,1.00946571]
[1723887029707,0.7539,2602.8,2602.6,1.71286916]
[1723887029910,0.3782,2602.7,2602.6,1.108]
[1723887030210,0.3782,2602.7,2602.6,1.71285243]
[1723887030407,0.3782,2602.7,2602.6,2.71654602]
[1723887030611,0.3782,2602.7,2602.6,1.108]
[1723887030812,0.3782,2602.7,2602.6,1.71282018]
[1723887031609,0.3782,2602.7,2602.6,2.71651377]
[1723887031805,1.51010865,2603.0,2602.6,4.15708377]
[1723887032112,2.21050865,2603.0,2602.7,1.71282018]
[1723887032314,2.21050865,2603.0,2602.8,0.60478683]
[1723887032613,0.7004,2603.0,2602.8,1.108]
[1723887032814,0.7004,2603.0,2602.9,0.3729]
[1723887033412,4.71790865,2603.1,2602.9,1.4809]
[1723887033612,1.51010865,2603.1,2602.9,1.4809]
[1723887034006,1.0643,2603.2,2602.9,2.9213]
[1723887034007,2.57440865,2603.2,2602.9,2.9213]
[1723887034610,1.0643,2603.2,2603.1,1.108]
[1723887034907,0.7004,2603.2,2603.1,2.5483]
[1723887035113,0.7004,2603.2,2603.1,3.15289655]
[1723887035512,0.3476,2603.2,2603.1,3.15289655]
[1723887035813,3.58581404,2603.4,2603.2,1.44021]
[1723887036123,3.58581404,2603.4,2603.3,0.3449]
[1723887036124,7.79801404,2603.4,2603.3,0.3449]
[1723887037418,9.30812269,2603.4,2603.3,0.3449]
[1723887038016,7.79801404,2603.4,2603.3,0.3449]
[1723887038212,9.30812269,2603.4,2603.3,0.3449]
[1723887038417,7.79801404,2603.4,2603.3,0.3449]
[1723887038721,9.30812269,2603.4,2603.3,0.3449]
[1723887039423,9.30812269,2603.4,2603.1,2.54828]
[1723887039628,3.95641404,2603.4,2603.2,0.6045225]
[1723887039920,3.95641404,2603.4,2603.1,2.92088]
[1723887040226,5.46652269,2603.4,2603.2,0.60449734]
[1723887040417,3.95641404,2603.4,2603.1,2.92088]
[1723887040724,3.95641404,2603.4,2603.2,0.60449459]
[1723887040925,3.95641404,2603.4,2603.1,2.92088]
[1723887041226,3.95641404,2603.4,2603.2,0.60452778]
[1723887041523,3.95641404,2603.4,2603.1,2.92088]
[1723887041725,3.95641404,2603.4,2603.2,0.60451548]
[1723887041921,3.95641404,2603.4,2603.1,2.92088]
[1723887042123,5.46652269,2603.4,2603.2,0.60450995]
[1723887042317,3.95641404,2603.4,2603.1,2.92088]
[1723887042724,3.95641404,2603.4,2603.2,0.60449011]
[1723887043022,3.58171404,2603.4,2603.2,1.108]
[1723887044529,0.37391404,2603.4,2603.2,1.108]
[1723887046332,0.37391404,2603.4,2603.1,1.4806]
[1723887046333,6.53196269,2603.4,2603.1,1.4806]
[1723887046525,0.3608,2603.3,2603.1,1.4806]
[1723887048432,0.3608,2603.3,2603.2,0.60443252]
[1723887049331,0.3608,2603.3,2603.2,1.71243252]
[1723887052729,0.37391404,2603.4,2603.2,3.15264252]
[1723887053031,0.00050396,2603.4,2603.3,12.33954934]
[1723887053218,0.00577212,2603.5,2603.4,1.44013]
[1723887053417,0.00577212,2603.5,2603.4,17.3478045]
[1723887053620,0.00577212,2603.5,2603.4,23.19077796]
[1723887054038,0.00577212,2603.5,2603.4,23.19071042]
[1723887054232,0.01026304,2603.5,2603.4,21.62175799]
[1723887054432,0.01026304,2603.5,2603.4,23.18990742]
[1723887054839,0.01026304,2603.5,2603.4,23.18990799]
[1723887055224,0.01026304,2603.5,2603.4,18.18990799]
[1723887055424,0.01026304,2603.5,2603.4,17.83250461]
[1723887055831,0.01026304,2603.5,2603.4,22.83250461]
[1723887056127,0.01026304,2603.5,2603.4,5.94572172]